[Event "Titled Tuesday Blitz November 9 2021"]
[White "Afanasiev, Nikita"]
[Black "Babiy, Olga"]
[WhiteFideId "24183555"]
[BlackFideId "14117258"]
[WhiteElo "2577"]
[BlackElo "2179"]
[Result "0-1"]
[Round "01"]
[TimeControl "180+1"]
[Date "2021.11.09"]
[WhiteClock "0:00:31"]
[BlackClock "0:00:12"]

1. Nf3 {[%clk 0:03:00]}  d5 {[%clk 0:02:59]} 2. d4 {[%clk 0:03:00]}  Nf6 {[%clk 0:02:58]} 3. Bf4 {[%clk 0:03:00]}  c5 {[%clk 0:02:55]} 4. e3 {[%clk 0:03:00]}  Nc6 {[%clk 0:02:55]} 5. c3 {[%clk 0:02:59]}  Qb6 {[%clk 0:02:45]} 6. Qc1 {[%clk 0:02:58]}  cxd4 {[%clk 0:02:43]} 7. exd4 {[%clk 0:02:58]}  Bg4 {[%clk 0:02:43]} 8. Nbd2 {[%clk 0:02:57]}  e6 {[%clk 0:02:43]} 9. h3 {[%clk 0:02:56]}  Bh5 {[%clk 0:02:43]} 10. Bd3 {[%clk 0:02:56]}  Be7 {[%clk 0:02:42]} 11. O-O {[%clk 0:02:55]}  Bg6 {[%clk 0:02:42]} 12. Bxg6 {[%clk 0:02:54]}  hxg6 {[%clk 0:02:43]} 13. Re1 {[%clk 0:02:55]}  O-O {[%clk 0:02:43]} 14. a4 {[%clk 0:02:55]}  Rac8 {[%clk 0:02:41]} 15. Qb1 {[%clk 0:02:54]}  Na5 {[%clk 0:02:38]} 16. Ne5 {[%clk 0:02:52]}  Nb3 {[%clk 0:02:10]} 17. Nxb3 {[%clk 0:02:50]}  Qxb3 {[%clk 0:02:11]} 18. Re2 {[%clk 0:02:49]}  Nh5 {[%clk 0:02:10]} 19. Bh2 {[%clk 0:02:48]}  Bg5 {[%clk 0:02:01]} 20. Nd3 {[%clk 0:02:17]}  Qc4 {[%clk 0:01:52]} 21. Qd1 {[%clk 0:02:15]}  Rfd8 {[%clk 0:01:43]} 22. g4 {[%clk 0:02:02]}  Nf6 {[%clk 0:01:35]} 23. f4 {[%clk 0:02:02]}  Bh4 {[%clk 0:01:35]} 24. Ne5 {[%clk 0:02:01]}  Qa6 {[%clk 0:01:31]} 25. Nf3 {[%clk 0:02:01]}  g5 {[%clk 0:01:13]} 26. fxg5 {[%clk 0:01:59]}  Ne4 {[%clk 0:01:13]} 27. Nxh4 {[%clk 0:01:58]}  Nxg5 {[%clk 0:01:13]} 28. Kg2 {[%clk 0:01:58]}  b5 {[%clk 0:00:58]} 29. axb5 {[%clk 0:01:56]}  Qxb5 {[%clk 0:00:59]} 30. Nf3 {[%clk 0:01:54]}  Ne4 {[%clk 0:00:58]} 31. Ne5 {[%clk 0:01:51]}  a5 {[%clk 0:00:52]} 32. Qd3 {[%clk 0:01:50]}  Qb6 {[%clk 0:00:48]} 33. Rf1 {[%clk 0:01:49]}  f6 {[%clk 0:00:46]} 34. Ng6 {[%clk 0:01:48]}  Kf7 {[%clk 0:00:38]} 35. Nf4 {[%clk 0:01:47]}  a4 {[%clk 0:00:36]} 36. Ra1 {[%clk 0:01:42]}  Ra8 {[%clk 0:00:35]} 37. Ra3 {[%clk 0:01:40]}  Rdc8 {[%clk 0:00:35]} 38. h4 {[%clk 0:01:36]}  Ra5 {[%clk 0:00:35]} 39. h5 {[%clk 0:01:35]}  Rb5 {[%clk 0:00:35]} 40. Rxe4 {[%clk 0:01:20]}  dxe4 {[%clk 0:00:34]} 41. Qxe4 {[%clk 0:01:21]}  Rxb2+ {[%clk 0:00:34]} 42. Kh3 {[%clk 0:01:21]}  Qd6 {[%clk 0:00:28]} 43. Qg6+ {[%clk 0:01:12]}  Kf8 {[%clk 0:00:28]} 44. h6 {[%clk 0:01:04]}  Qxa3 {[%clk 0:00:16]} 45. Qxg7+ {[%clk 0:00:44]}  Ke8 {[%clk 0:00:16]} 46. Qg8+ {[%clk 0:00:45]}  Kd7 {[%clk 0:00:16]} 47. Qxe6+ {[%clk 0:00:45]}  Kd8 {[%clk 0:00:16]} 48. Qxf6+ {[%clk 0:00:45]}  Kd7 {[%clk 0:00:17]} 49. Qf7+ {[%clk 0:00:43]}  Kc6 {[%clk 0:00:17]} 50. Nd5 {[%clk 0:00:37]}  Rxh2+ {[%clk 0:00:11]} 51. Kxh2 {[%clk 0:00:37]}  Qa2+ {[%clk 0:00:12]} 52. Kg3 {[%clk 0:00:34]}  Qxd5 {[%clk 0:00:13]} 53. Qf1 {[%clk 0:00:31]}  Kb6 {[%clk 0:00:12]} 54. h7 {[%clk 0:00:30]}  Rxc3+ {[%clk 0:00:12]} 55. Kh4 {[%clk 0:00:30]}  Qd8+ {[%clk 0:00:12]} 56. Kh5 {[%clk 0:00:30]}  Qe8+ {[%clk 0:00:11]} 57. Kg5 {[%clk 0:00:27]}  Qe7+ {[%clk 0:00:11]} 58. Qf6+ {[%clk 0:00:25]}  Qxf6+ {[%clk 0:00:11]} 59. Kxf6 {[%clk 0:00:26]}  Rh3 {[%clk 0:00:12]} 60. Kg7 {[%clk 0:00:27]}  a3 {[%clk 0:00:11]} 61. h8=Q {[%clk 0:00:28]}  Rxh8 {[%clk 0:00:11]} 62. Kxh8 {[%clk 0:00:29]}  a2 {[%clk 0:00:12]} 63. g5 {[%clk 0:00:29]}  a1=Q {[%clk 0:00:12]} 64. g6 {[%clk 0:00:27]}  Qxd4+ {[%clk 0:00:12]} 65. g7 {[%clk 0:00:27]}  Qh4+ {[%clk 0:00:13]} 66. Kg8 {[%clk 0:00:27]}  Kc7 {[%clk 0:00:13]} 67. Kf7 {[%clk 0:00:28]}  Qf4+ {[%clk 0:00:13]} 68. Kg6 {[%clk 0:00:29]}  Qg4+ {[%clk 0:00:13]} 69. Kh7 {[%clk 0:00:30]}  Qh5+ {[%clk 0:00:13]} 70. Kg8 {[%clk 0:00:31]}  Kd7 {[%clk 0:00:13]} 71. Kf8 {[%clk 0:00:31]}  Qf5+ {[%clk 0:00:12]} 72. Kg8 {[%clk 0:00:31]}  Ke7 {[%clk 0:00:11]} 73. Kh8 {[%clk 0:00:31]}  Qh5+ {[%clk 0:00:12]} 74. Kg8 {[%clk 0:00:31]}  Kf6 {[%clk 0:00:11]} 75. Kf8 {[%clk 0:00:31]}  Qf7# {[%clk 0:00:12]} 0-1


[Site "https://www.chess.com"]

[Event "Titled Tuesday Blitz November 9 2021"]
[White "Belenkaya, Dina"]
[Black "Grischuk, Alexander"]
[WhiteFideId "24142654"]
[BlackFideId "4126025"]
[WhiteElo "2196"]
[BlackElo "2757"]
[Result "0-1"]
[Round "01"]
[TimeControl "180+1"]
[Date "2021.11.09"]
[WhiteClock "0:00:02"]
[BlackClock "0:00:09"]

1. e4 {[%clk 0:02:59]}  c6 {[%clk 0:02:59]} 2. d3 {[%clk 0:02:57]}  d5 {[%clk 0:02:58]} 3. Nd2 {[%clk 0:02:58]}  e5 {[%clk 0:02:56]} 4. Ngf3 {[%clk 0:02:57]}  Bd6 {[%clk 0:02:55]} 5. g3 {[%clk 0:02:57]}  Nf6 {[%clk 0:02:55]} 6. Bg2 {[%clk 0:02:58]}  O-O {[%clk 0:02:56]} 7. O-O {[%clk 0:02:57]}  Re8 {[%clk 0:02:56]} 8. Qe2 {[%clk 0:02:56]}  Nbd7 {[%clk 0:02:55]} 9. h3 {[%clk 0:02:54]}  Nf8 {[%clk 0:02:53]} 10. Rd1 {[%clk 0:02:51]}  Ng6 {[%clk 0:02:53]} 11. Nf1 {[%clk 0:02:51]}  Qc7 {[%clk 0:02:52]} 12. Ne3 {[%clk 0:02:48]}  h6 {[%clk 0:02:46]} 13. Nd2 {[%clk 0:02:39]}  Be6 {[%clk 0:02:44]} 14. c4 {[%clk 0:02:35]}  dxc4 {[%clk 0:02:35]} 15. dxc4 {[%clk 0:02:36]}  a5 {[%clk 0:02:33]} 16. b3 {[%clk 0:02:30]}  Bc5 {[%clk 0:02:28]} 17. Bb2 {[%clk 0:02:27]}  Rad8 {[%clk 0:02:25]} 18. Ndf1 {[%clk 0:02:23]}  Bd4 {[%clk 0:02:13]} 19. Rd2 {[%clk 0:02:16]}  Qb6 {[%clk 0:02:02]} 20. Rad1 {[%clk 0:02:13]}  h5 {[%clk 0:01:58]} 21. Nf5 {[%clk 0:02:05]}  Bxb2 {[%clk 0:01:29]} 22. Rxb2 {[%clk 0:01:42]}  h4 {[%clk 0:00:49]} 23. Rbd2 {[%clk 0:01:36]}  hxg3 {[%clk 0:00:47]} 24. N1xg3 {[%clk 0:01:37]}  Nf4 {[%clk 0:00:44]} 25. Qf3 {[%clk 0:01:30]}  Rxd2 {[%clk 0:00:43]} 26. Rxd2 {[%clk 0:01:31]}  Rd8 {[%clk 0:00:43]} 27. Qd1 {[%clk 0:01:05]}  Rxd2 {[%clk 0:00:41]} 28. Qxd2 {[%clk 0:01:06]}  Qc7 {[%clk 0:00:21]} 29. Kh2 {[%clk 0:00:32]}  g6 {[%clk 0:00:20]} 30. Nd6 {[%clk 0:00:22]}  Kf8 {[%clk 0:00:20]} 31. c5 {[%clk 0:00:17]}  Nd7 {[%clk 0:00:20]} 32. Qc3 {[%clk 0:00:16]}  b6 {[%clk 0:00:20]} 33. Nc4 {[%clk 0:00:07]}  Bxc4 {[%clk 0:00:17]} 34. Qxc4 {[%clk 0:00:08]}  Nxc5 {[%clk 0:00:17]} 35. Nf1 {[%clk 0:00:07]}  Nce6 {[%clk 0:00:16]} 36. Ne3 {[%clk 0:00:05]}  Qd6 {[%clk 0:00:14]} 37. Qc3 {[%clk 0:00:04]}  Nd4 {[%clk 0:00:14]} 38. Qc4 {[%clk 0:00:04]}  b5 {[%clk 0:00:14]} 39. Qf1 {[%clk 0:00:02]}  Kg7 {[%clk 0:00:14]} 40. Qg1 {[%clk 0:00:02]}  Nde6 {[%clk 0:00:12]} 41. Qc1 {[%clk 0:00:02]}  Nd4 {[%clk 0:00:10]} 42. Ng4 {[%clk 0:00:02]}  Qe6 {[%clk 0:00:08]} 43. Ne3 {[%clk 0:00:02]}  Qf6 {[%clk 0:00:08]} 44. Ng4 {[%clk 0:00:01]}  Qh4 {[%clk 0:00:07]} 45. Qe3 {[%clk 0:00:02]}  f6 {[%clk 0:00:07]} 46. Qg3 {[%clk 0:00:03]}  Qxg3+ {[%clk 0:00:07]} 47. fxg3 {[%clk 0:00:04]}  Nd3 {[%clk 0:00:07]} 48. Ne3 {[%clk 0:00:04]}  Nc1 {[%clk 0:00:08]} 49. a4 {[%clk 0:00:03]}  Ncxb3 {[%clk 0:00:08]} 50. axb5 {[%clk 0:00:03]}  cxb5 {[%clk 0:00:09]} 51. Nd5 {[%clk 0:00:03]}  a4 {[%clk 0:00:09]} 52. Bf1 {[%clk 0:00:04]}  a3 {[%clk 0:00:09]} 53. Nb4 {[%clk 0:00:04]}  Nc1 {[%clk 0:00:09]} 54. Bd3 {[%clk 0:00:02]}  Nxd3 {[%clk 0:00:08]} 55. Nxd3 {[%clk 0:00:02]}  a2 {[%clk 0:00:09]} 56. Nb4 {[%clk 0:00:02]}  a1=Q {[%clk 0:00:09]} 0-1


[Site "https://www.chess.com"]

[Event "Titled Tuesday Blitz November 9 2021"]
[White "Bortnyk, Olexandr"]
[Black "Petukhov, Dmitry"]
[WhiteFideId "14120828"]
[BlackFideId "4142748"]
[WhiteElo "2723"]
[BlackElo "2356"]
[Result "1-0"]
[Round "01"]
[TimeControl "180+1"]
[Date "2021.11.09"]
[WhiteClock "0:02:14"]
[BlackClock "0:01:45"]

1. e4 {[%clk 0:02:58]}  c5 {[%clk 0:02:58]} 2. c3 {[%clk 0:02:57]}  d5 {[%clk 0:02:58]} 3. exd5 {[%clk 0:02:58]}  Qxd5 {[%clk 0:02:59]} 4. d4 {[%clk 0:02:58]}  Nf6 {[%clk 0:02:58]} 5. Nf3 {[%clk 0:02:55]}  Bg4 {[%clk 0:02:58]} 6. dxc5 {[%clk 0:02:54]}  Qxd1+ {[%clk 0:02:57]} 7. Kxd1 {[%clk 0:02:55]}  e5 {[%clk 0:02:57]} 8. b4 {[%clk 0:02:52]}  a5 {[%clk 0:02:53]} 9. h3 {[%clk 0:02:46]}  Bxf3+ {[%clk 0:02:53]} 10. gxf3 {[%clk 0:02:46]}  axb4 {[%clk 0:02:54]} 11. cxb4 {[%clk 0:02:47]}  Nc6 {[%clk 0:02:54]} 12. Bd2 {[%clk 0:02:46]}  Nd5 {[%clk 0:02:47]} 13. Bb5 {[%clk 0:02:38]}  O-O-O {[%clk 0:02:45]} 14. Bxc6 {[%clk 0:02:33]}  bxc6 {[%clk 0:02:44]} 15. Kc2 {[%clk 0:02:32]}  g6 {[%clk 0:02:34]} 16. Na3 {[%clk 0:02:32]}  Bg7 {[%clk 0:02:33]} 17. Nc4 {[%clk 0:02:31]}  e4 {[%clk 0:02:28]} 18. fxe4 {[%clk 0:02:32]}  Bxa1 {[%clk 0:02:27]} 19. exd5 {[%clk 0:02:32]}  Bd4 {[%clk 0:02:21]} 20. dxc6 {[%clk 0:02:31]}  Kc7 {[%clk 0:02:21]} 21. b5 {[%clk 0:02:31]}  Bxc5 {[%clk 0:02:13]} 22. Ba5+ {[%clk 0:02:31]}  Kc8 {[%clk 0:02:12]} 23. Bxd8 {[%clk 0:02:31]}  Rxd8 {[%clk 0:02:13]} 24. Rd1 {[%clk 0:02:26]}  Rxd1 {[%clk 0:02:11]} 25. Kxd1 {[%clk 0:02:27]}  Bxf2 {[%clk 0:02:12]} 26. b6 {[%clk 0:02:16]}  Bxb6 {[%clk 0:01:50]} 27. Nxb6+ {[%clk 0:02:16]}  Kc7 {[%clk 0:01:51]} 28. Nd7 {[%clk 0:02:13]}  Kxc6 {[%clk 0:01:52]} 29. Ne5+ {[%clk 0:02:13]}  Kd5 {[%clk 0:01:45]} 30. Nxf7 {[%clk 0:02:14]} 1-0


[Site "https://www.chess.com"]

[Event "Titled Tuesday Blitz November 9 2021"]
[White "Brunner, Nicolas"]
[Black "Kamsky, Gata"]
[WhiteFideId "620246"]
[BlackFideId "2000024"]
[WhiteElo "2372"]
[BlackElo "2645"]
[Result "0-1"]
[Round "01"]
[TimeControl "180+1"]
[Date "2021.11.09"]
[WhiteClock "0:02:29"]
[BlackClock "0:02:11"]

1. d4 {[%clk 0:02:59]}  d5 {[%clk 0:02:56]} 2. c4 {[%clk 0:02:58]}  c6 {[%clk 0:02:50]} 3. Nc3 {[%clk 0:02:56]}  Nf6 {[%clk 0:02:48]} 4. cxd5 {[%clk 0:02:55]}  cxd5 {[%clk 0:02:47]} 5. Bf4 {[%clk 0:02:55]}  a6 {[%clk 0:02:47]} 6. e3 {[%clk 0:02:55]}  Nc6 {[%clk 0:02:47]} 7. Bd3 {[%clk 0:02:53]}  Bg4 {[%clk 0:02:46]} 8. Nge2 {[%clk 0:02:51]}  e6 {[%clk 0:02:46]} 9. O-O {[%clk 0:02:51]}  Bxe2 {[%clk 0:02:45]} 10. Qxe2 {[%clk 0:02:50]}  Bd6 {[%clk 0:02:46]} 11. Bxd6 {[%clk 0:02:49]}  Qxd6 {[%clk 0:02:45]} 12. Rac1 {[%clk 0:02:48]}  O-O {[%clk 0:02:45]} 13. Na4 {[%clk 0:02:45]}  Rab8 {[%clk 0:02:33]} 14. Nc5 {[%clk 0:02:44]}  Rfc8 {[%clk 0:02:30]} 15. Rc3 {[%clk 0:02:38]}  Ne8 {[%clk 0:02:18]} 16. Rfc1 {[%clk 0:02:35]}  Ne7 {[%clk 0:02:12]} 17. Nxb7 {[%clk 0:02:29]}  Rxc3 {[%clk 0:02:11]} 0-1


[Site "https://www.chess.com"]

[Event "Titled Tuesday Blitz November 9 2021"]
[White "Claridge-Hansen, William"]
[Black "Adly, Ahmed"]
[WhiteFideId "422509"]
[BlackFideId "10601619"]
[WhiteElo "2261"]
[BlackElo "2683"]
[Result "1-0"]
[Round "01"]
[TimeControl "180+1"]
[Date "2021.11.09"]
[WhiteClock "0:00:21"]
[BlackClock "0:00:35"]

1. c4 {[%clk 0:03:00]}  Nf6 {[%clk 0:02:59]} 2. g3 {[%clk 0:03:01]}  e6 {[%clk 0:03:00]} 3. Bg2 {[%clk 0:03:02]}  d5 {[%clk 0:03:01]} 4. Nf3 {[%clk 0:03:02]}  dxc4 {[%clk 0:03:01]} 5. Qa4+ {[%clk 0:03:02]}  Nbd7 {[%clk 0:03:02]} 6. Qxc4 {[%clk 0:03:02]}  a6 {[%clk 0:03:03]} 7. Qb3 {[%clk 0:03:01]}  c5 {[%clk 0:03:01]} 8. a4 {[%clk 0:02:59]}  Be7 {[%clk 0:03:00]} 9. O-O {[%clk 0:02:57]}  O-O {[%clk 0:03:00]} 10. d3 {[%clk 0:02:56]}  Ra7 {[%clk 0:02:57]} 11. a5 {[%clk 0:02:54]}  Nd5 {[%clk 0:02:57]} 12. Nbd2 {[%clk 0:02:49]}  b5 {[%clk 0:02:55]} 13. axb6 {[%clk 0:02:49]}  Qxb6 {[%clk 0:02:55]} 14. Qxb6 {[%clk 0:02:46]}  N7xb6 {[%clk 0:02:56]} 15. Ne5 {[%clk 0:02:38]}  Bf6 {[%clk 0:02:55]} 16. Nec4 {[%clk 0:02:37]}  Rd8 {[%clk 0:02:47]} 17. Nxb6 {[%clk 0:02:20]}  Nxb6 {[%clk 0:02:48]} 18. Ra5 {[%clk 0:02:12]}  Be7 {[%clk 0:02:41]} 19. b3 {[%clk 0:02:10]}  Bd7 {[%clk 0:02:37]} 20. Ba3 {[%clk 0:02:00]}  Bb5 {[%clk 0:02:36]} 21. Rc1 {[%clk 0:02:00]}  Rc7 {[%clk 0:02:30]} 22. Nc4 {[%clk 0:01:59]}  Nd5 {[%clk 0:02:29]} 23. Bb2 {[%clk 0:01:42]}  Bg5 {[%clk 0:02:18]} 24. Rb1 {[%clk 0:01:32]}  Bf6 {[%clk 0:02:15]} 25. Bxf6 {[%clk 0:01:27]}  gxf6 {[%clk 0:02:16]} 26. Rc1 {[%clk 0:01:20]}  Nb4 {[%clk 0:02:01]} 27. Na3 {[%clk 0:01:08]}  Rb8 {[%clk 0:01:59]} 28. Rc3 {[%clk 0:00:41]}  Kf8 {[%clk 0:01:51]} 29. Kf1 {[%clk 0:00:39]}  Ke7 {[%clk 0:01:50]} 30. d4 {[%clk 0:00:36]}  Rbc8 {[%clk 0:01:37]} 31. Nxb5 {[%clk 0:00:35]}  axb5 {[%clk 0:01:37]} 32. Rxb5 {[%clk 0:00:34]}  cxd4 {[%clk 0:01:35]} 33. Rxc7+ {[%clk 0:00:27]}  Rxc7 {[%clk 0:01:35]} 34. Bf3 {[%clk 0:00:16]}  Na2 {[%clk 0:01:29]} 35. Rb7 {[%clk 0:00:14]}  Rxb7 {[%clk 0:01:27]} 36. Bxb7 {[%clk 0:00:14]}  Kd6 {[%clk 0:01:27]} 37. Ke1 {[%clk 0:00:15]}  Nc1 {[%clk 0:01:22]} 38. Be4 {[%clk 0:00:11]}  h6 {[%clk 0:01:17]} 39. Bc2 {[%clk 0:00:12]}  Kc5 {[%clk 0:01:18]} 40. Kd2 {[%clk 0:00:12]}  Na2 {[%clk 0:01:18]} 41. e3 {[%clk 0:00:09]}  dxe3+ {[%clk 0:01:14]} 42. Kxe3 {[%clk 0:00:10]}  Nb4 {[%clk 0:01:13]} 43. Bd1 {[%clk 0:00:09]}  Nd5+ {[%clk 0:01:12]} 44. Kf3 {[%clk 0:00:09]}  Kd4 {[%clk 0:01:09]} 45. h4 {[%clk 0:00:08]}  Nc3 {[%clk 0:01:04]} 46. Bc2 {[%clk 0:00:08]}  f5 {[%clk 0:01:04]} 47. g4 {[%clk 0:00:08]}  fxg4+ {[%clk 0:01:01]} 48. Kxg4 {[%clk 0:00:09]}  f5+ {[%clk 0:00:43]} 49. Bxf5 {[%clk 0:00:08]}  h5+ {[%clk 0:00:36]} 50. Kxh5 {[%clk 0:00:04]}  exf5 {[%clk 0:00:37]} 51. Kg6 {[%clk 0:00:03]}  Ke5 {[%clk 0:00:35]} 52. h5 {[%clk 0:00:03]}  Nd5 {[%clk 0:00:35]} 53. h6 {[%clk 0:00:03]}  Nf4+ {[%clk 0:00:34]} 54. Kg7 {[%clk 0:00:02]}  Ne6+ {[%clk 0:00:34]} 55. Kf7 {[%clk 0:00:02]}  Ng5+ {[%clk 0:00:32]} 56. Kg7 {[%clk 0:00:03]}  Ne6+ {[%clk 0:00:30]} 57. Kg8 {[%clk 0:00:03]}  Nf4 {[%clk 0:00:28]} 58. h7 {[%clk 0:00:03]}  Ng6 {[%clk 0:00:28]} 59. b4 {[%clk 0:00:04]}  Kd5 {[%clk 0:00:26]} 60. h8=Q {[%clk 0:00:04]}  Nxh8 {[%clk 0:00:26]} 61. Kxh8 {[%clk 0:00:05]}  Kc4 {[%clk 0:00:26]} 62. Kg7 {[%clk 0:00:06]}  f4 {[%clk 0:00:26]} 63. Kf6 {[%clk 0:00:07]}  f3 {[%clk 0:00:26]} 64. Kf5 {[%clk 0:00:07]}  Kxb4 {[%clk 0:00:27]} 65. Kf4 {[%clk 0:00:08]}  Kc5 {[%clk 0:00:28]} 66. Kxf3 {[%clk 0:00:09]}  Kd6 {[%clk 0:00:28]} 67. Ke4 {[%clk 0:00:09]}  Ke6 {[%clk 0:00:29]} 68. Kf4 {[%clk 0:00:10]}  Kf6 {[%clk 0:00:29]} 69. f3 {[%clk 0:00:11]}  Ke6 {[%clk 0:00:29]} 70. Kg5 {[%clk 0:00:11]}  Kf7 {[%clk 0:00:30]} 71. Kf5 {[%clk 0:00:12]}  Kg7 {[%clk 0:00:29]} 72. Ke6 {[%clk 0:00:12]}  Kf8 {[%clk 0:00:29]} 73. f4 {[%clk 0:00:13]}  Ke8 {[%clk 0:00:30]} 74. f5 {[%clk 0:00:13]}  Kf8 {[%clk 0:00:31]} 75. Kf6 {[%clk 0:00:14]}  Kg8 {[%clk 0:00:31]} 76. Ke7 {[%clk 0:00:14]}  Kg7 {[%clk 0:00:32]} 77. f6+ {[%clk 0:00:15]}  Kh7 {[%clk 0:00:32]} 78. f7 {[%clk 0:00:16]}  Kg6 {[%clk 0:00:33]} 79. f8=Q {[%clk 0:00:17]}  Kh5 {[%clk 0:00:34]} 80. Qf1 {[%clk 0:00:17]}  Kg4 {[%clk 0:00:33]} 81. Qf2 {[%clk 0:00:18]}  Kg5 {[%clk 0:00:34]} 82. Qf3 {[%clk 0:00:18]}  Kg6 {[%clk 0:00:35]} 83. Qf4 {[%clk 0:00:19]}  Kg7 {[%clk 0:00:35]} 84. Qf5 {[%clk 0:00:19]}  Kh6 {[%clk 0:00:35]} 85. Qg4 {[%clk 0:00:19]}  Kh7 {[%clk 0:00:35]} 86. Kf7 {[%clk 0:00:20]}  Kh6 {[%clk 0:00:35]} 87. Qg6# {[%clk 0:00:21]} 1-0


[Site "https://www.chess.com"]

[Event "Titled Tuesday Blitz November 9 2021"]
[White "Havlik, Jan"]
[Black "Zubov, Alexander"]
[WhiteFideId "319783"]
[BlackFideId "14109409"]
[WhiteElo "2372"]
[BlackElo "2685"]
[Result "0-1"]
[Round "01"]
[TimeControl "180+1"]
[Date "2021.11.09"]
[WhiteClock "0:02:23"]
[BlackClock "0:01:01"]

1. e4 {[%clk 0:03:00]}  Nc6 {[%clk 0:02:57]} 2. Nf3 {[%clk 0:03:00]}  d6 {[%clk 0:02:55]} 3. d4 {[%clk 0:02:58]}  Nf6 {[%clk 0:02:54]} 4. Nc3 {[%clk 0:02:58]}  g6 {[%clk 0:02:54]} 5. Be3 {[%clk 0:02:57]}  Bg7 {[%clk 0:02:53]} 6. Be2 {[%clk 0:02:57]}  O-O {[%clk 0:02:53]} 7. Qd2 {[%clk 0:02:57]}  e5 {[%clk 0:02:50]} 8. dxe5 {[%clk 0:02:57]}  dxe5 {[%clk 0:02:42]} 9. Qxd8 {[%clk 0:02:57]}  Rxd8 {[%clk 0:02:41]} 10. Bg5 {[%clk 0:02:57]}  Be6 {[%clk 0:02:37]} 11. Rd1 {[%clk 0:02:55]}  h6 {[%clk 0:02:33]} 12. Bxf6 {[%clk 0:02:55]}  Bxf6 {[%clk 0:02:33]} 13. Nd5 {[%clk 0:02:55]}  Bxd5 {[%clk 0:02:32]} 14. exd5 {[%clk 0:02:55]}  Nb4 {[%clk 0:02:31]} 15. c3 {[%clk 0:02:51]}  Nxd5 {[%clk 0:02:27]} 16. Bc4 {[%clk 0:02:51]}  Nb6 {[%clk 0:02:12]} 17. Bb3 {[%clk 0:02:50]}  Rxd1+ {[%clk 0:01:57]} 18. Kxd1 {[%clk 0:02:49]}  Kf8 {[%clk 0:01:53]} 19. Re1 {[%clk 0:02:47]}  Re8 {[%clk 0:01:53]} 20. Kc2 {[%clk 0:02:47]}  Bg7 {[%clk 0:01:48]} 21. Nd2 {[%clk 0:02:46]}  f5 {[%clk 0:01:43]} 22. Nc4 {[%clk 0:02:46]}  Nc8 {[%clk 0:01:37]} 23. Rd1 {[%clk 0:02:45]}  Ke7 {[%clk 0:01:35]} 24. Ba4 {[%clk 0:02:43]}  c6 {[%clk 0:01:35]} 25. Ne3 {[%clk 0:02:42]}  Nd6 {[%clk 0:01:31]} 26. f3 {[%clk 0:02:40]}  h5 {[%clk 0:01:29]} 27. Bb3 {[%clk 0:02:38]}  b5 {[%clk 0:01:27]} 28. a4 {[%clk 0:02:38]}  Bh6 {[%clk 0:01:27]} 29. Re1 {[%clk 0:02:36]}  Bxe3 {[%clk 0:01:21]} 30. Rxe3 {[%clk 0:02:36]}  Kd7 {[%clk 0:01:21]} 31. axb5 {[%clk 0:02:35]}  cxb5 {[%clk 0:01:21]} 32. h4 {[%clk 0:02:36]}  Kc6 {[%clk 0:01:17]} 33. g3 {[%clk 0:02:36]}  a5 {[%clk 0:01:16]} 34. Ba2 {[%clk 0:02:32]}  e4 {[%clk 0:01:14]} 35. f4 {[%clk 0:02:31]}  Rd8 {[%clk 0:01:08]} 36. Re1 {[%clk 0:02:31]}  Nc4 {[%clk 0:01:07]} 37. b3 {[%clk 0:02:23]}  Rd2+ {[%clk 0:01:02]} 38. Kb1 {[%clk 0:02:23]}  Na3+ {[%clk 0:01:01]} 0-1


[Site "https://www.chess.com"]

[Event "Titled Tuesday Blitz November 9 2021"]
[White "Ibrahimli, Murad"]
[Black "Stankovic, Ivan G"]
[WhiteFideId "13410229"]
[BlackFideId "902837"]
[WhiteElo "2109"]
[BlackElo "2195"]
[Result "1/2-1/2"]
[Round "01"]
[TimeControl "180+1"]
[Date "2021.11.09"]
[WhiteClock "0:01:22"]
[BlackClock "0:00:43"]

1. d4 {[%clk 0:03:00]}  d5 {[%clk 0:02:59]} 2. c4 {[%clk 0:03:01]}  c6 {[%clk 0:02:58]} 3. Nf3 {[%clk 0:03:01]}  Nf6 {[%clk 0:02:58]} 4. e3 {[%clk 0:03:00]}  a6 {[%clk 0:02:57]} 5. Nc3 {[%clk 0:02:59]}  Bf5 {[%clk 0:02:52]} 6. Be2 {[%clk 0:02:57]}  h6 {[%clk 0:02:49]} 7. Bd3 {[%clk 0:02:56]}  Bxd3 {[%clk 0:02:48]} 8. Qxd3 {[%clk 0:02:57]}  e6 {[%clk 0:02:48]} 9. Bd2 {[%clk 0:02:56]}  Bb4 {[%clk 0:02:40]} 10. O-O {[%clk 0:02:55]}  Bxc3 {[%clk 0:02:37]} 11. Bxc3 {[%clk 0:02:55]}  O-O {[%clk 0:02:38]} 12. b3 {[%clk 0:02:53]}  Nbd7 {[%clk 0:02:33]} 13. a4 {[%clk 0:02:48]}  a5 {[%clk 0:02:28]} 14. Nd2 {[%clk 0:02:46]}  c5 {[%clk 0:02:24]} 15. Rfd1 {[%clk 0:02:30]}  b6 {[%clk 0:02:10]} 16. Bb2 {[%clk 0:02:29]}  Rc8 {[%clk 0:02:05]} 17. Rac1 {[%clk 0:02:29]}  Qe7 {[%clk 0:02:04]} 18. Ba3 {[%clk 0:02:22]}  dxc4 {[%clk 0:01:56]} 19. bxc4 {[%clk 0:02:19]}  Rfd8 {[%clk 0:01:52]} 20. Qb3 {[%clk 0:02:19]}  Qe8 {[%clk 0:01:45]} 21. Nb1 {[%clk 0:02:16]}  Rb8 {[%clk 0:01:42]} 22. Nc3 {[%clk 0:02:15]}  Rdc8 {[%clk 0:01:31]} 23. Nb5 {[%clk 0:02:12]}  Qe7 {[%clk 0:01:14]} 24. d5 {[%clk 0:02:12]}  exd5 {[%clk 0:01:14]} 25. cxd5 {[%clk 0:02:13]}  Ne5 {[%clk 0:01:11]} 26. h3 {[%clk 0:02:10]}  Ne4 {[%clk 0:01:01]} 27. Qc2 {[%clk 0:02:10]}  Nd6 {[%clk 0:01:01]} 28. Nxd6 {[%clk 0:02:07]}  Qxd6 {[%clk 0:01:02]} 29. f4 {[%clk 0:02:07]}  Nd7 {[%clk 0:01:02]} 30. Bb2 {[%clk 0:02:04]}  Re8 {[%clk 0:00:58]} 31. Rd3 {[%clk 0:01:45]}  Re4 {[%clk 0:00:54]} 32. Rb1 {[%clk 0:01:30]}  Rbe8 {[%clk 0:00:54]} 33. Bc1 {[%clk 0:01:30]}  c4 {[%clk 0:00:43]} 34. Rd1 {[%clk 0:01:22]}  Nc5 {[%clk 0:00:43]} 1/2-1/2


[Site "https://www.chess.com"]